[Event "Titled Tuesday Blitz November 15 Early 2022"]
[White "Devaev, Alexander"]
[Black "Mgeladze, Tamaz"]
[WhiteFideId "4169395"]
[BlackFideId "13601202"]
[WhiteElo "2225"]
[BlackElo "2288"]
[Result "0-1"]
[Round "03"]
[TimeControl "180+1"]
[Date "2022.11.16"]
[WhiteClock "0:00:01"]
[BlackClock "0:01:23"]

1. d4 {[%clk 0:02:11]}  Nf6 {[%clk 0:02:59]} 2. c4 {[%clk 0:02:08]}  g6 {[%clk 0:03:00]} 3. Nc3 {[%clk 0:02:08]}  Bg7 {[%clk 0:03:00]} 4. e4 {[%clk 0:02:09]}  O-O {[%clk 0:03:01]} 5. Nf3 {[%clk 0:02:09]}  d6 {[%clk 0:03:02]} 6. h3 {[%clk 0:02:10]}  e5 {[%clk 0:03:02]} 7. d5 {[%clk 0:02:10]}  a5 {[%clk 0:03:02]} 8. Bg5 {[%clk 0:02:11]}  Na6 {[%clk 0:03:03]} 9. Be2 {[%clk 0:02:10]}  Qe8 {[%clk 0:03:04]} 10. g4 {[%clk 0:02:10]}  Nd7 {[%clk 0:03:04]} 11. Rg1 {[%clk 0:02:10]}  Ndc5 {[%clk 0:03:04]} 12. h4 {[%clk 0:02:08]}  Bd7 {[%clk 0:02:58]} 13. h5 {[%clk 0:02:08]}  c6 {[%clk 0:02:55]} 14. Nd2 {[%clk 0:01:52]}  Nb4 {[%clk 0:02:52]} 15. Nf1 {[%clk 0:01:52]}  b5 {[%clk 0:02:49]} 16. Ne3 {[%clk 0:01:43]}  cxd5 {[%clk 0:02:44]} 17. cxd5 {[%clk 0:01:15]}  Nba6 {[%clk 0:02:30]} 18. f3 {[%clk 0:01:15]}  b4 {[%clk 0:02:30]} 19. Nb1 {[%clk 0:01:16]}  Bb5 {[%clk 0:02:25]} 20. Kf2 {[%clk 0:01:05]}  f6 {[%clk 0:02:20]} 21. Bh4 {[%clk 0:01:04]}  Bh6 {[%clk 0:02:17]} 22. Nd2 {[%clk 0:00:43]}  Bxe3+ {[%clk 0:02:15]} 23. Kxe3 {[%clk 0:00:43]}  g5 {[%clk 0:02:15]} 24. Be1 {[%clk 0:00:33]}  Rc8 {[%clk 0:02:15]} 25. Kf2 {[%clk 0:00:17]}  a4 {[%clk 0:02:09]} 26. Kg3 {[%clk 0:00:17]}  Qd7 {[%clk 0:02:02]} 27. Rc1 {[%clk 0:00:16]}  Rc7 {[%clk 0:01:56]} 28. Bf2 {[%clk 0:00:17]}  Rfc8 {[%clk 0:01:55]} 29. Bxc5 {[%clk 0:00:12]}  Nxc5 {[%clk 0:01:56]} 30. Bxb5 {[%clk 0:00:09]}  Qxb5 {[%clk 0:01:57]} 31. Qf1 {[%clk 0:00:09]}  Qxf1 {[%clk 0:01:51]} 32. Rcxf1 {[%clk 0:00:08]}  Nd3 {[%clk 0:01:52]} 33. b3 {[%clk 0:00:08]}  a3 {[%clk 0:01:52]} 34. Nc4 {[%clk 0:00:08]}  Rxc4 {[%clk 0:01:52]} 35. bxc4 {[%clk 0:00:08]}  Rxc4 {[%clk 0:01:53]} 36. Rd1 {[%clk 0:00:09]}  Rc3 {[%clk 0:01:48]} 37. Rb1 {[%clk 0:00:07]}  Rc2 {[%clk 0:01:42]} 38. Rg2 {[%clk 0:00:08]}  Rc3 {[%clk 0:01:36]} 39. Rd2 {[%clk 0:00:08]}  Nc5 {[%clk 0:01:35]} 40. Kg2 {[%clk 0:00:07]}  Nd3 {[%clk 0:01:36]} 41. Kg3 {[%clk 0:00:04]}  Kf7 {[%clk 0:01:34]} 42. Kg2 {[%clk 0:00:04]}  Ke7 {[%clk 0:01:34]} 43. Rbd1 {[%clk 0:00:03]}  Nb2 {[%clk 0:01:31]} 44. Rb1 {[%clk 0:00:03]}  Nc4 {[%clk 0:01:27]} 45. Rf2 {[%clk 0:00:01]}  Nb2 {[%clk 0:01:23]} 0-1


[Site "https://www.chess.com"]

[Event "Titled Tuesday Blitz November 15 Early 2022"]
[White "Donchenko, Alexander"]
[Black "Mouhamad, Joachim"]
[WhiteFideId "24603295"]
[BlackFideId "656410"]
[WhiteElo "2833"]
[BlackElo "2472"]
[Result "1-0"]
[Round "03"]
[TimeControl "180+1"]
[Date "2022.11.16"]
[WhiteClock "0:00:18"]
[BlackClock "0:00:05"]

1. d4 {[%clk 0:03:00]}  d5 {[%clk 0:02:59]} 2. c4 {[%clk 0:03:00]}  e6 {[%clk 0:03:00]} 3. Nf3 {[%clk 0:03:01]}  a6 {[%clk 0:03:00]} 4. g3 {[%clk 0:02:58]}  dxc4 {[%clk 0:02:59]} 5. Bg2 {[%clk 0:02:58]}  Nc6 {[%clk 0:02:59]} 6. O-O {[%clk 0:02:57]}  Rb8 {[%clk 0:03:00]} 7. a4 {[%clk 0:02:56]}  Nf6 {[%clk 0:02:56]} 8. a5 {[%clk 0:02:55]}  b5 {[%clk 0:02:51]} 9. axb6 {[%clk 0:02:53]}  cxb6 {[%clk 0:02:51]} 10. Bf4 {[%clk 0:02:42]}  Bd6 {[%clk 0:02:50]} 11. Ne5 {[%clk 0:02:41]}  Na5 {[%clk 0:02:40]} 12. Qa4+ {[%clk 0:02:10]}  Kf8 {[%clk 0:02:39]} 13. Nxc4 {[%clk 0:01:58]}  Bxf4 {[%clk 0:02:33]} 14. Nxa5 {[%clk 0:01:53]}  bxa5 {[%clk 0:02:28]} 15. gxf4 {[%clk 0:01:52]}  g6 {[%clk 0:02:12]} 16. e3 {[%clk 0:01:45]}  Kg7 {[%clk 0:02:12]} 17. Qa3 {[%clk 0:01:36]}  Bb7 {[%clk 0:01:54]} 18. Qxa5 {[%clk 0:01:25]}  Bxg2 {[%clk 0:01:27]} 19. Qxd8 {[%clk 0:01:25]}  Rhxd8 {[%clk 0:01:28]} 20. Kxg2 {[%clk 0:01:25]}  Rxb2 {[%clk 0:01:25]} 21. Rxa6 {[%clk 0:01:24]}  Nd5 {[%clk 0:01:23]} 22. Kf3 {[%clk 0:01:19]}  Rdb8 {[%clk 0:01:19]} 23. Na3 {[%clk 0:01:15]}  Ra2 {[%clk 0:01:17]} 24. Ra7 {[%clk 0:01:12]}  Rbb2 {[%clk 0:00:32]} 25. Nb5 {[%clk 0:01:04]}  Rxa7 {[%clk 0:00:33]} 26. Nxa7 {[%clk 0:01:04]}  Rb6 {[%clk 0:00:29]} 27. Rc1 {[%clk 0:01:02]}  h5 {[%clk 0:00:28]} 28. Nc6 {[%clk 0:01:00]}  Nf6 {[%clk 0:00:13]} 29. Ne5 {[%clk 0:00:58]}  Rb7 {[%clk 0:00:14]} 30. Rc2 {[%clk 0:00:55]}  Ra7 {[%clk 0:00:14]} 31. Rb2 {[%clk 0:00:54]}  Rc7 {[%clk 0:00:14]} 32. Ra2 {[%clk 0:00:52]}  Rb7 {[%clk 0:00:14]} 33. Rc2 {[%clk 0:00:47]}  Ra7 {[%clk 0:00:15]} 34. Ke2 {[%clk 0:00:47]}  Rb7 {[%clk 0:00:15]} 35. f3 {[%clk 0:00:44]}  Nd5 {[%clk 0:00:14]} 36. Nd3 {[%clk 0:00:37]}  Rb3 {[%clk 0:00:14]} 37. e4 {[%clk 0:00:31]}  Nb4 {[%clk 0:00:06]} 38. Nxb4 {[%clk 0:00:21]}  Rxb4 {[%clk 0:00:07]} 39. Kd3 {[%clk 0:00:20]}  Rb3+ {[%clk 0:00:07]} 40. Rc3 {[%clk 0:00:20]}  Rb1 {[%clk 0:00:08]} 41. d5 {[%clk 0:00:20]}  exd5 {[%clk 0:00:08]} 42. exd5 {[%clk 0:00:21]}  Kf6 {[%clk 0:00:06]} 43. Ke4 {[%clk 0:00:20]}  Re1+ {[%clk 0:00:06]} 44. Kd4 {[%clk 0:00:20]}  Rd1+ {[%clk 0:00:03]} 45. Kc5 {[%clk 0:00:20]}  Rh1 {[%clk 0:00:04]} 46. d6 {[%clk 0:00:19]}  Rxh2 {[%clk 0:00:04]} 47. Rd3 {[%clk 0:00:18]}  Ra2 {[%clk 0:00:02]} 48. d7 {[%clk 0:00:18]}  Rc2+ {[%clk 0:00:03]} 49. Kb6 {[%clk 0:00:18]}  Rb2+ {[%clk 0:00:03]} 50. Ka5 {[%clk 0:00:18]}  Ra2+ {[%clk 0:00:04]} 51. Kb4 {[%clk 0:00:18]}  Rb2+ {[%clk 0:00:03]} 52. Kc3 {[%clk 0:00:18]}  Rb8 {[%clk 0:00:03]} 53. d8=Q+ {[%clk 0:00:19]}  Rxd8 {[%clk 0:00:04]} 54. Rxd8 {[%clk 0:00:19]}  Kf5 {[%clk 0:00:04]} 55. Rd4 {[%clk 0:00:17]}  h4 {[%clk 0:00:04]} 56. Kd3 {[%clk 0:00:18]}  h3 {[%clk 0:00:05]} 57. Ke3 {[%clk 0:00:18]} 1-0


[Site "https://www.chess.com"]

[Event "Titled Tuesday Blitz November 15 Early 2022"]
[White "Fabris, Alberto"]
[Black "Chernov, Mikhail"]
[WhiteFideId "801348"]
[BlackFideId "24143170"]
[WhiteElo "2020"]
[BlackElo "2113"]
[Result "1-0"]
[Round "03"]
[TimeControl "180+1"]
[Date "2022.11.16"]
[WhiteClock "0:00:12"]
[BlackClock "0:00:02"]

1. d4 {[%clk 0:03:00]}  d5 {[%clk 0:02:53]} 2. Nf3 {[%clk 0:03:00]}  Nc6 {[%clk 0:02:52]} 3. c4 {[%clk 0:02:58]}  Bg4 {[%clk 0:02:51]} 4. e3 {[%clk 0:02:56]}  e6 {[%clk 0:02:51]} 5. Nc3 {[%clk 0:02:55]}  Bb4 {[%clk 0:02:51]} 6. Be2 {[%clk 0:02:52]}  Nf6 {[%clk 0:02:51]} 7. O-O {[%clk 0:02:52]}  Bxc3 {[%clk 0:02:51]} 8. bxc3 {[%clk 0:02:51]}  O-O {[%clk 0:02:52]} 9. cxd5 {[%clk 0:02:48]}  exd5 {[%clk 0:02:53]} 10. c4 {[%clk 0:02:48]}  Ne4 {[%clk 0:02:52]} 11. Bb2 {[%clk 0:02:34]}  dxc4 {[%clk 0:02:45]} 12. Bxc4 {[%clk 0:02:31]}  Bxf3 {[%clk 0:02:43]} 13. gxf3 {[%clk 0:02:26]}  Nd6 {[%clk 0:02:29]} 14. Bd3 {[%clk 0:02:21]}  Qh4 {[%clk 0:02:28]} 15. f4 {[%clk 0:02:09]}  Rfe8 {[%clk 0:02:23]} 16. Qf3 {[%clk 0:02:06]}  Rad8 {[%clk 0:02:07]} 17. Rad1 {[%clk 0:02:02]}  Re6 {[%clk 0:02:03]} 18. Kh1 {[%clk 0:02:01]}  Rh6 {[%clk 0:02:02]} 19. Qg2 {[%clk 0:01:59]}  Ne7 {[%clk 0:01:53]} 20. d5 {[%clk 0:01:48]}  Nef5 {[%clk 0:01:47]} 21. Rg1 {[%clk 0:01:40]}  Rg6 {[%clk 0:01:43]} 22. Qf3 {[%clk 0:01:39]}  Qh6 {[%clk 0:01:20]} 23. Rxg6 {[%clk 0:01:29]}  hxg6 {[%clk 0:01:21]} 24. e4 {[%clk 0:01:21]}  Nh4 {[%clk 0:01:19]} 25. Qg3 {[%clk 0:01:20]}  Qh5 {[%clk 0:01:19]} 26. Re1 {[%clk 0:01:09]}  Re8 {[%clk 0:01:14]} 27. h3 {[%clk 0:01:00]}  Ndf5 {[%clk 0:00:50]} 28. Qg4 {[%clk 0:00:53]}  Nf3 {[%clk 0:00:40]} 29. Qxh5 {[%clk 0:00:38]}  gxh5 {[%clk 0:00:41]} 30. Rc1 {[%clk 0:00:37]}  Nd6 {[%clk 0:00:29]} 31. Kg2 {[%clk 0:00:31]}  Nh4+ {[%clk 0:00:28]} 32. Kg3 {[%clk 0:00:31]}  Ng6 {[%clk 0:00:28]} 33. f3 {[%clk 0:00:30]}  h4+ {[%clk 0:00:28]} 34. Kg4 {[%clk 0:00:27]}  Re7 {[%clk 0:00:24]} 35. e5 {[%clk 0:00:21]}  Ne8 {[%clk 0:00:17]} 36. Re1 {[%clk 0:00:19]}  Rd7 {[%clk 0:00:16]} 37. Be4 {[%clk 0:00:18]}  c6 {[%clk 0:00:12]} 38. d6 {[%clk 0:00:17]}  Kh7 {[%clk 0:00:04]} 39. f5 {[%clk 0:00:17]}  Nf8 {[%clk 0:00:04]} 40. Kxh4 {[%clk 0:00:17]}  Kg8 {[%clk 0:00:04]} 41. f4 {[%clk 0:00:16]}  f6 {[%clk 0:00:04]} 42. Kg4 {[%clk 0:00:16]}  Nh7 {[%clk 0:00:03]} 43. Rh1 {[%clk 0:00:15]}  Rd8 {[%clk 0:00:02]} 44. h4 {[%clk 0:00:15]}  Nf8 {[%clk 0:00:03]} 45. h5 {[%clk 0:00:15]}  Nh7 {[%clk 0:00:04]} 46. h6 {[%clk 0:00:14]}  gxh6 {[%clk 0:00:03]} 47. Rxh6 {[%clk 0:00:14]}  Kg7 {[%clk 0:00:04]} 48. Rg6+ {[%clk 0:00:14]}  Kf7 {[%clk 0:00:05]} 49. Bc2 {[%clk 0:00:13]}  fxe5 {[%clk 0:00:05]} 50. fxe5 {[%clk 0:00:12]}  Nf8 {[%clk 0:00:05]} 51. Bb3+ {[%clk 0:00:12]}  Ne6 {[%clk 0:00:02]} 52. Bxe6+ {[%clk 0:00:12]}  Kf8 {[%clk 0:00:02]} 53. Rg8# {[%clk 0:00:12]} 1-0


[Site "https://www.chess.com"]

[Event "Titled Tuesday Blitz November 15 Early 2022"]
[White "Fedoseev, Vladimir"]
[Black "Samunenkov, Ihor"]
[WhiteFideId "24130737"]
[BlackFideId "14187086"]
[WhiteElo "2726"]
[BlackElo "2441"]
[Result "0-1"]
[Round "03"]
[TimeControl "180+1"]
[Date "2022.11.15"]
[WhiteClock "0:00:11"]
[BlackClock "0:00:01"]

1. e4 {[%clk 0:02:56]}  c6 {[%clk 0:02:59]} 2. d4 {[%clk 0:02:56]}  d5 {[%clk 0:02:59]} 3. exd5 {[%clk 0:02:56]}  cxd5 {[%clk 0:02:59]} 4. Bd3 {[%clk 0:02:57]}  Nc6 {[%clk 0:02:58]} 5. c3 {[%clk 0:02:56]}  Nf6 {[%clk 0:02:57]} 6. Bf4 {[%clk 0:02:55]}  Bg4 {[%clk 0:02:53]} 7. Qb3 {[%clk 0:02:55]}  Qd7 {[%clk 0:02:53]} 8. Nd2 {[%clk 0:02:54]}  e6 {[%clk 0:02:52]} 9. h3 {[%clk 0:02:54]}  Bh5 {[%clk 0:02:51]} 10. Ngf3 {[%clk 0:02:55]}  Bd6 {[%clk 0:02:50]} 11. Bxd6 {[%clk 0:02:45]}  Qxd6 {[%clk 0:02:49]} 12. Qxb7 {[%clk 0:02:45]}  Rb8 {[%clk 0:02:10]} 13. Qa6 {[%clk 0:02:45]}  O-O {[%clk 0:01:55]} 14. b4 {[%clk 0:02:00]}  Rb6 {[%clk 0:01:40]} 15. Qa4 {[%clk 0:02:00]}  Bxf3 {[%clk 0:01:35]} 16. Nxf3 {[%clk 0:01:57]}  e5 {[%clk 0:01:34]} 17. b5 {[%clk 0:01:34]}  e4 {[%clk 0:01:33]} 18. bxc6 {[%clk 0:01:24]}  exf3 {[%clk 0:01:26]} 19. g3 {[%clk 0:01:04]}  Rxc6 {[%clk 0:01:21]} 20. Kd2 {[%clk 0:01:04]}  Rfc8 {[%clk 0:00:57]} 21. Rac1 {[%clk 0:00:58]}  Ne4+ {[%clk 0:00:57]} 22. Bxe4 {[%clk 0:00:58]}  dxe4 {[%clk 0:00:54]} 23. Rhe1 {[%clk 0:00:57]}  f5 {[%clk 0:00:48]} 24. Re3 {[%clk 0:00:55]}  h6 {[%clk 0:00:43]} 25. g4 {[%clk 0:00:51]}  Qh2 {[%clk 0:00:32]} 26. Rf1 {[%clk 0:00:50]}  Qg2 {[%clk 0:00:30]} 27. Qb5 {[%clk 0:00:37]}  a6 {[%clk 0:00:19]} 28. Qb3+ {[%clk 0:00:36]}  Kh7 {[%clk 0:00:18]} 29. Qb1 {[%clk 0:00:35]}  g6 {[%clk 0:00:14]} 30. d5 {[%clk 0:00:18]}  Rc5 {[%clk 0:00:10]} 31. d6 {[%clk 0:00:18]}  Kh8 {[%clk 0:00:04]} 32. Kc2 {[%clk 0:00:17]}  Rd8 {[%clk 0:00:02]} 33. Qd1 {[%clk 0:00:16]}  Rcc8 {[%clk 0:00:02]} 34. Ree1 {[%clk 0:00:13]}  Rc6 {[%clk 0:00:02]} 35. Qd4+ {[%clk 0:00:13]}  Kh7 {[%clk 0:00:02]} 36. gxf5 {[%clk 0:00:11]}  gxf5 {[%clk 0:00:01]} 0-1


[Site "https://www.chess.com"]

[Event "Titled Tuesday Blitz November 15 Early 2022"]
[White "Galchenko, Matvey"]
[Black "Ronka, Erik"]
[WhiteFideId "24175480"]
[BlackFideId "505080"]
[WhiteElo "2403"]
[BlackElo "2264"]
[Result "1-0"]
[Round "03"]
[TimeControl "180+1"]
[Date "2022.11.16"]
[WhiteClock "0:01:06"]
[BlackClock "0:01:10"]

1. Nf3 {[%clk 0:03:00]}  d5 {[%clk 0:02:59]} 2. c4 {[%clk 0:03:01]}  e6 {[%clk 0:02:59]} 3. e3 {[%clk 0:03:01]}  Nf6 {[%clk 0:03:00]} 4. Nc3 {[%clk 0:03:01]}  c6 {[%clk 0:02:57]} 5. b3 {[%clk 0:03:01]}  Nbd7 {[%clk 0:02:57]} 6. Bb2 {[%clk 0:03:00]}  Bd6 {[%clk 0:02:57]} 7. Qc2 {[%clk 0:03:00]}  O-O {[%clk 0:02:57]} 8. Be2 {[%clk 0:03:00]}  b6 {[%clk 0:02:55]} 9. Rg1 {[%clk 0:03:00]}  Bb7 {[%clk 0:02:47]} 10. g4 {[%clk 0:02:58]}  e5 {[%clk 0:02:46]} 11. g5 {[%clk 0:02:53]}  Ne8 {[%clk 0:02:44]} 12. h4 {[%clk 0:02:44]}  Rc8 {[%clk 0:02:27]} 13. h5 {[%clk 0:02:32]}  Qe7 {[%clk 0:02:16]} 14. a3 {[%clk 0:02:07]}  Nc7 {[%clk 0:02:09]} 15. Nh4 {[%clk 0:01:55]}  g6 {[%clk 0:01:59]} 16. hxg6 {[%clk 0:01:49]}  fxg6 {[%clk 0:01:57]} 17. Nxg6 {[%clk 0:01:50]}  Qf7 {[%clk 0:01:46]} 18. Nxf8 {[%clk 0:01:44]}  Rxf8 {[%clk 0:01:47]} 19. O-O-O {[%clk 0:01:42]}  e4 {[%clk 0:01:34]} 20. g6 {[%clk 0:01:25]}  hxg6 {[%clk 0:01:34]} 21. f4 {[%clk 0:01:25]}  c5 {[%clk 0:01:21]} 22. cxd5 {[%clk 0:01:24]}  Nxd5 {[%clk 0:01:22]} 23. Nxe4 {[%clk 0:01:23]}  Be7 {[%clk 0:01:11]} 24. Rh1 {[%clk 0:01:12]}  N7f6 {[%clk 0:01:10]} 25. Ng5 {[%clk 0:01:06]} 1-0


[Site "https://www.chess.com"]

[Event "Titled Tuesday Blitz November 15 Early 2022"]
[White "Gerbelli Neto, Eduardo"]
[Black "Raahul V S"]
[WhiteFideId "2103281"]
[BlackFideId "25035525"]
[WhiteElo "2178"]
[BlackElo "2233"]
[Result "0-1"]
[Round "03"]
[TimeControl "180+1"]
[Date "2022.11.16"]
[WhiteClock "0:00:06"]
[BlackClock "0:00:08"]

1. e4 {[%clk 0:02:47]}  e5 {[%clk 0:02:32]} 2. Nf3 {[%clk 0:02:43]}  Nc6 {[%clk 0:02:32]} 3. d4 {[%clk 0:02:43]}  exd4 {[%clk 0:02:31]} 4. Nxd4 {[%clk 0:02:44]}  Nf6 {[%clk 0:02:32]} 5. Nc3 {[%clk 0:02:43]}  Bb4 {[%clk 0:02:30]} 6. Nxc6 {[%clk 0:02:42]}  bxc6 {[%clk 0:02:31]} 7. Bd3 {[%clk 0:02:43]}  O-O {[%clk 0:02:31]} 8. O-O {[%clk 0:02:32]}  d5 {[%clk 0:02:25]} 9. exd5 {[%clk 0:02:31]}  cxd5 {[%clk 0:02:26]} 10. Bg5 {[%clk 0:02:31]}  c6 {[%clk 0:02:24]} 11. Qf3 {[%clk 0:02:28]}  Bd6 {[%clk 0:02:21]} 12. Rfe1 {[%clk 0:02:13]}  Rb8 {[%clk 0:02:17]} 13. b3 {[%clk 0:02:12]}  Rb4 {[%clk 0:01:51]} 14. h3 {[%clk 0:02:08]}  h6 {[%clk 0:01:45]} 15. Bd2 {[%clk 0:01:58]}  Rh4 {[%clk 0:01:38]} 16. Bf5 {[%clk 0:01:33]}  Qc7 {[%clk 0:01:24]} 17. Bxc8 {[%clk 0:01:19]}  Rxc8 {[%clk 0:01:25]} 18. Ne2 {[%clk 0:01:04]}  Ne4 {[%clk 0:01:21]} 19. Rad1 {[%clk 0:00:57]}  Bh2+ {[%clk 0:00:55]} 20. Kf1 {[%clk 0:00:50]}  Bd6 {[%clk 0:00:52]} 21. Be3 {[%clk 0:00:38]}  Bb4 {[%clk 0:00:48]} 22. Nd4 {[%clk 0:00:35]}  g6 {[%clk 0:00:35]} 23. Re2 {[%clk 0:00:31]}  Nc3 {[%clk 0:00:32]} 24. Rd3 {[%clk 0:00:17]}  Nxe2 {[%clk 0:00:30]} 25. Qxe2 {[%clk 0:00:18]}  Re4 {[%clk 0:00:30]} 26. Qf3 {[%clk 0:00:18]}  Rce8 {[%clk 0:00:26]} 27. g3 {[%clk 0:00:16]}  c5 {[%clk 0:00:24]} 28. Bf4 {[%clk 0:00:13]}  Rxf4 {[%clk 0:00:23]} 29. gxf4 {[%clk 0:00:13]}  cxd4 {[%clk 0:00:23]} 30. Qxd5 {[%clk 0:00:14]}  Qxf4 {[%clk 0:00:18]} 31. Qxd4 {[%clk 0:00:09]}  Qc1+ {[%clk 0:00:11]} 32. Kg2 {[%clk 0:00:09]}  Qg5+ {[%clk 0:00:09]} 33. Rg3 {[%clk 0:00:08]}  Qb5 {[%clk 0:00:09]} 34. Qd3 {[%clk 0:00:08]}  Qxd3 {[%clk 0:00:08]} 35. Rxd3 {[%clk 0:00:07]}  Re2 {[%clk 0:00:08]} 36. Kf3 {[%clk 0:00:05]}  Rxc2 {[%clk 0:00:08]} 37. a4 {[%clk 0:00:06]}  Rc3 {[%clk 0:00:07]} 38. Ke4 {[%clk 0:00:04]}  Rxd3 {[%clk 0:00:07]} 39. Kxd3 {[%clk 0:00:05]}  a5 {[%clk 0:00:07]} 40. Kc4 {[%clk 0:00:06]}  Kg7 {[%clk 0:00:08]} 0-1


[Site "https://www.chess.com"]

[Event "Titled Tuesday Blitz November 15 Early 2022"]
[White "Godzwon, Iwo"]
[Black "Forgacs, Attila Jr."]
[WhiteFideId "21802483"]
[BlackFideId "773654"]
[WhiteElo "2284"]
[BlackElo "2168"]
[Result "1-0"]
[Round "03"]
[TimeControl "180+1"]
[Date "2022.11.16"]
[WhiteClock "0:01:10"]
[BlackClock "0:01:11"]

1. e4 {[%clk 0:02:59]}  e5 {[%clk 0:02:59]} 2. Nf3 {[%clk 0:02:40]}  Nc6 {[%clk 0:02:58]} 3. Bb5 {[%clk 0:02:41]}  a6 {[%clk 0:02:58]} 4. Ba4 {[%clk 0:02:41]}  Nf6 {[%clk 0:02:58]} 5. O-O {[%clk 0:02:42]}  Be7 {[%clk 0:02:59]} 6. Re1 {[%clk 0:02:42]}  b5 {[%clk 0:03:00]} 7. Bb3 {[%clk 0:02:42]}  O-O {[%clk 0:03:00]} 8. a3 {[%clk 0:02:42]}  d6 {[%clk 0:02:44]} 9. Nc3 {[%clk 0:02:41]}  Bg4 {[%clk 0:02:44]} 10. h3 {[%clk 0:02:26]}  Bh5 {[%clk 0:02:44]} 11. g4 {[%clk 0:02:08]}  Nxg4 {[%clk 0:02:43]} 12. hxg4 {[%clk 0:02:09]}  Bxg4 {[%clk 0:02:44]} 13. Bd5 {[%clk 0:01:45]}  Nd4 {[%clk 0:02:42]} 14. Nxd4 {[%clk 0:01:46]}  Bxd1 {[%clk 0:02:42]} 15. Nc6 {[%clk 0:01:47]}  Qd7 {[%clk 0:02:35]} 16. Nxd1 {[%clk 0:01:41]}  Qg4+ {[%clk 0:02:30]} 17. Kf1 {[%clk 0:01:41]}  Qh3+ {[%clk 0:02:21]} 18. Ke2 {[%clk 0:01:36]}  Bh4 {[%clk 0:02:17]} 19. Ne3 {[%clk 0:01:20]}  Kh8 {[%clk 0:01:42]} 20. d3 {[%clk 0:01:15]}  g6 {[%clk 0:01:16]} 21. Bd2 {[%clk 0:01:13]}  f5 {[%clk 0:01:16]} 22. Rh1 {[%clk 0:01:11]}  Qg2 {[%clk 0:01:11]} 23. Nxg2 {[%clk 0:01:10]} 1-0


[Site "https://www.chess.com"]

[Event "Titled Tuesday Blitz November 15 Early 2022"]
[White "Gokerkan, Cem Kaan"]
[Black "Ince, Taylan Ruzgar"]
[WhiteFideId "6336760"]
[BlackFideId "44513089"]
[WhiteElo "2859"]
[BlackElo "2604"]
[Result "0-1"]
[Round "03"]
[TimeControl "180+1"]
[Date "2022.11.16"]
[WhiteClock "0:00:03"]
[BlackClock "0:00:27"]

1. e4 {[%clk 0:03:00]}  e6 {[%clk 0:02:59]} 2. d4 {[%clk 0:02:58]}  d5 {[%clk 0:02:59]} 3. Nd2 {[%clk 0:02:59]}  Nc6 {[%clk 0:02:58]} 4. Ngf3 {[%clk 0:02:59]}  Nf6 {[%clk 0:02:58]} 5. e5 {[%clk 0:02:59]}  Nd7 {[%clk 0:02:58]} 6. Bb5 {[%clk 0:02:55]}  Be7 {[%clk 0:02:46]} 7. O-O {[%clk 0:02:55]}  a6 {[%clk 0:02:46]} 8. Be2 {[%clk 0:02:51]}  f6 {[%clk 0:02:42]} 9. exf6 {[%clk 0:02:47]}  Bxf6 {[%clk 0:02:42]} 10. Re1 {[%clk 0:02:20]}  O-O {[%clk 0:02:42]} 11. Nf1 {[%clk 0:02:19]}  e5 {[%clk 0:02:38]} 12. dxe5 {[%clk 0:02:18]}  Ndxe5 {[%clk 0:02:38]} 13. c3 {[%clk 0:02:13]}  Ng6 {[%clk 0:02:18]} 14. Ng3 {[%clk 0:02:06]}  Nce7 {[%clk 0:02:17]} 15. Be3 {[%clk 0:01:58]}  Qd6 {[%clk 0:02:14]} 16. Rc1 {[%clk 0:01:27]}  c5 {[%clk 0:02:09]} 17. b4 {[%clk 0:01:27]}  b6 {[%clk 0:02:09]} 18. bxc5 {[%clk 0:01:21]}  bxc5 {[%clk 0:02:09]} 19. Ne4 {[%clk 0:01:19]}  Qc6 {[%clk 0:02:02]} 20. Nxc5 {[%clk 0:01:17]}  Nf5 {[%clk 0:02:00]} 21. Bd4 {[%clk 0:01:17]}  Nf4 {[%clk 0:01:53]} 22. Nd3 {[%clk 0:01:12]}  Nxe2+ {[%clk 0:01:49]} 23. Qxe2 {[%clk 0:01:13]}  Nxd4 {[%clk 0:01:40]} 24. cxd4 {[%clk 0:01:12]}  Qb5 {[%clk 0:01:37]} 25. Nde5 {[%clk 0:01:11]}  Qxe2 {[%clk 0:01:37]} 26. Rxe2 {[%clk 0:01:12]}  Bf5 {[%clk 0:01:36]} 27. Rb2 {[%clk 0:01:00]}  Rfc8 {[%clk 0:01:35]} 28. Rxc8+ {[%clk 0:01:00]}  Rxc8 {[%clk 0:01:36]} 29. h3 {[%clk 0:00:58]}  Bd8 {[%clk 0:01:10]} 30. Rb7 {[%clk 0:00:53]}  h6 {[%clk 0:01:07]} 31. Ra7 {[%clk 0:00:45]}  a5 {[%clk 0:01:06]} 32. Rb7 {[%clk 0:00:34]}  a4 {[%clk 0:01:02]} 33. Rb5 {[%clk 0:00:30]}  a3 {[%clk 0:00:51]} 34. Rxd5 {[%clk 0:00:30]}  Be6 {[%clk 0:00:50]} 35. Rb5 {[%clk 0:00:18]}  Bxa2 {[%clk 0:00:50]} 36. d5 {[%clk 0:00:05]}  Bc4 {[%clk 0:00:39]} 37. Rb7 {[%clk 0:00:02]}  a2 {[%clk 0:00:35]} 38. Ra7 {[%clk 0:00:03]}  Bxd5 {[%clk 0:00:33]} 39. Nd3 {[%clk 0:00:03]}  Bf6 {[%clk 0:00:27]} 40. Nb4 {[%clk 0:00:02]}  Bxf3 {[%clk 0:00:26]} 41. Rxa2 {[%clk 0:00:02]}  Rc1+ {[%clk 0:00:26]} 42. Kh2 {[%clk 0:00:03]}  Be5+ {[%clk 0:00:27]} 0-1


[Site "https://www.chess.com"]